lending/lending_fUSD_20250122
["ID","MTS","AMOUNT","RATE_DAILY","PERIOD"]
[350010447,1737564657337,-500.0,0.00020273,2]
[350010448,1737564657346,-937.01,0.00020273,2]
[350010449,1737564657355,-1249.64,0.00020273,2]
[350010450,1737564657365,-500.0,0.00020273,2]
[350010451,1737564657375,-500.0,0.00020273,2]
[350010452,1737564657385,-500.0,0.00020273,2]
[350010453,1737564657395,-500.0,0.00020273,2]
[350010454,1737564657405,-500.0,0.00020273,2]
[350010455,1737564657414,-557.94,0.00020273,2]
[350010456,1737564657427,-1662.37,0.00020273,2]
[350010457,1737564657438,-799.87,0.00020273,2]
[350010458,1737564657448,-659.97,0.00020273,2]
[350010459,1737564657458,-1189.42,0.00020273,2]
[350010460,1737564657467,-1115.66,0.00020273,2]
[350010461,1737564657476,-758.88,0.00020273,2]
[350010462,1737564657486,-500.0,0.00020273,2]
[350010463,1737564657496,-897.56,0.00020273,2]
[350010464,1737564657506,-600.73,0.00020273,2]
[350010465,1737564657516,-500.0,0.00020273,2]
[350010466,1737564657526,-500.0,0.00020273,2]
[350010467,1737564657535,-1689.73,0.00020273,2]
[350010468,1737564657545,-500.0,0.00020273,2]
[350010469,1737564657554,-1289.84,0.00020273,2]
[350010470,1737564657564,-948.07,0.00020273,2]
[350010471,1737564657575,-500.0,0.00020273,2]
[350010472,1737564657585,-1292.99,0.00020273,2]
[350010473,1737564657595,-987.12,0.00020273,2]
[350010474,1737564657605,-500.0,0.00020273,2]
[350010475,1737564657615,-1179.31,0.00020273,2]
[350010476,1737564657625,-500.0,0.00020273,2]
[350010477,1737564657634,-1540.0,0.00020273,2]
[350010478,1737564657644,-500.0,0.00020273,2]
[350010479,1737564657654,-576.36,0.00020273,2]
[350010480,1737564657663,-1949.27,0.00020273,2]
[350010481,1737564657672,-1084.18,0.00020273,2]
[350010482,1737564657682,-2520.38,0.00020273,2]
[350010483,1737564657691,-553.52,0.00020273,2]
[350010484,1737564657701,-5054.1,0.00020273,2]
[350010485,1737564657710,-668.03,0.00020273,2]
[350010486,1737564657719,-933.97,0.00020273,2]
[350010487,1737564657728,-1396.54,0.00020273,2]
[350010488,1737564657738,-2807.04,0.00020273,2]
[350010489,1737564657747,-640.64,0.00020273,2]
[350010490,1737564657756,-861.9,0.00020273,2]
[350010491,1737564657765,-742.82,0.00020273,2]
[350010492,1737564657776,-500.0,0.00020273,2]
[350010493,1737564657786,-2622.27,0.00020273,2]
[350010494,1737564657795,-500.0,0.00020273,2]
[350010495,1737564657805,-1147.71,0.00020273,2]
[350010496,1737564657814,-500.0,0.00020273,2]
[350010497,1737564657825,-1397.58,0.00020273,2]
[350010498,1737564657835,-644.84,0.00020273,2]
[350010499,1737564657845,-500.0,0.00020273,2]
[350010500,1737564657855,-876.86,0.00020273,2]
[350010501,1737564657864,-500.0,0.00020273,2]
[350010502,1737564657874,-1969.95,0.00020273,2]
[350010503,1737564657883,-1623.55,0.00020273,2]
[350010504,1737564657895,-1125.49,0.00020273,2]
[350010505,1737564657905,-988.97,0.00020273,2]
[350010506,1737564657914,-500.0,0.00020273,2]
[350010507,1737564657924,-1383.41,0.00020273,2]
[350010508,1737564657934,-3375.42,0.00020273,2]
[350010509,1737564657944,-933.59,0.00020273,2]
[350010510,1737564657954,-500.0,0.00020273,2]
[350010511,1737564657964,-877.46,0.00020273,2]
[350010512,1737564657973,-674.84,0.00020273,2]
[350010513,1737564657982,-788.35,0.00020273,2]
[350010514,1737564657992,-2196.11,0.00020273,2]
[350010515,1737564658001,-1102.3,0.00020273,2]
[350010516,1737564658010,-802.14,0.00020273,2]
[350010517,1737564658019,-500.0,0.00020273,2]
[350010518,1737564658029,-1948.77,0.00020273,2]
[350010519,1737564658039,-2637.93,0.00020273,2]
[350010520,1737564658048,-1505.78,0.00020273,2]
[350010521,1737564658058,-500.0,0.00020273,2]
[350010522,1737564658067,-994.03,0.00020273,2]
[350010523,1737564658077,-637.51,0.00020273,2]
[350010524,1737564658087,-866.11,0.00020273,2]
[350010525,1737564658096,-524.7,0.00020273,2]
[350010526,1737564658105,-500.0,0.00020273,2]
[350010527,1737564658115,-895.62,0.00020273,2]
[350010528,1737564658124,-709.66,0.00020273,2]
[350010529,1737564658134,-500.0,0.00020273,2]
[350010530,1737564658143,-1296.18,0.00020273,2]
[350010531,1737564658152,-1221.77,0.00020273,2]
[350010532,1737564658161,-500.0,0.00020273,2]
[350010533,1737564658171,-1308.26,0.00020273,2]
[350010534,1737564658180,-1266.64,0.00020273,2]
[350010535,1737564658190,-500.0,0.00020273,2]
[350010536,1737564658200,-1024.02,0.00020273,2]
[350010537,1737564658209,-933.28,0.00020273,2]
[350010538,1737564658218,-500.0,0.00020273,2]
[350010539,1737564658227,-2952.64,0.00020273,2]
[350010540,1737564658237,-929.73,0.00020273,2]
[350010541,1737564658246,-1159.37,0.00020273,2]
[350010542,1737564658256,-817.08,0.00020273,2]
[350010543,1737564658264,-522.56,0.00020273,2]
[350010544,1737564658274,-1594.75,0.00020273,2]
[350010545,1737564658283,-500.0,0.00020273,2]
[350010546,1737564658293,-500.0,0.00020273,2]
[350010547,1737564658302,-500.0,0.00020273,2]
[350010548,1737564658311,-1319.68,0.00020273,2]
[350010549,1737564658321,-500.0,0.00020273,2]
[350010550,1737564658330,-943.47,0.00020273,2]
[350010551,1737564658340,-556.38,0.00020273,2]
[350010552,1737564658350,-979.95,0.00020273,2]
[350010553,1737564658359,-2180.0,0.00020273,2]
[350010554,1737564658369,-500.0,0.00020273,2]
[350010555,1737564658378,-500.0,0.00020273,2]
[350010556,1737564658387,-1000.0,0.00020273,2]
[350010557,1737564658397,-1054.44,0.00020273,2]
[350010558,1737564658406,-500.0,0.00020273,2]
[350010559,1737564658415,-599.54,0.00020273,2]
[350010560,1737564658425,-506.05,0.00020273,2]
[350010561,1737564658434,-500.0,0.00020273,2]
[350010562,1737564658443,-616.56,0.00020273,2]
[350010563,1737564658453,-703.23,0.00020273,2]
[350010564,1737564658463,-1469.11,0.00020273,2]
[350010565,1737564658472,-500.0,0.00020273,2]
[350010566,1737564658482,-500.0,0.00020273,2]
[350010567,1737564658491,-500.0,0.00020273,2]
[350010568,1737564658500,-500.0,0.00020273,2]
[350010569,1737564658509,-500.0,0.00020273,2]
[350010570,1737564658519,-500.0,0.00020273,2]
[350010571,1737564658528,-1729.24,0.00020273,2]
[350010572,1737564658539,-1622.79,0.00020273,2]
[350010573,1737564658548,-563.14,0.00020273,2]
[350010574,1737564658557,-500.0,0.00020273,2]
[350010575,1737564658567,-2613.81,0.00020273,2]
[350010576,1737564658577,-904.26,0.00020273,2]
[350010577,1737564658586,-548.46,0.00020273,2]
[350010578,1737564658595,-931.41,0.00020273,2]
[350010579,1737564658604,-500.0,0.00020273,2]
[350010580,1737564658613,-2218.6,0.00020273,2]
[350010581,1737564658622,-150.0,0.00020306,2]
[350010582,1737564658632,-150.0,0.00020315,2]
[350010583,1737564658641,-150.0,0.0002033,2]
[350010584,1737564658650,-924.0006285,0.00020332,2]
[350010585,1737564658659,-677.58006963,0.00020332,2]
[350010586,1737564658668,-582.87467083,0.00020348,2]
[350010587,1737564658678,-25216.9283,0.00020408,2]
[350010588,1737564658688,-2000.0,0.0002041,2]
[350010589,1737564658697,-200.0,0.0002041,2]
[350010590,1737564658706,-2000.0,0.0002041,2]
[350010591,1737564658716,-200.0,0.0002041,2]
[350010592,1737564658725,-201.68562728,0.0002041,2]
[350010593,1737564658734,-150.0,0.0002043,2]
[350010594,1737564658743,-150.0,0.0002044,2]
[350010595,1737564658753,-150.0,0.0002044,2]
[350010596,1737564658762,-150.0,0.00020443,2]
[350010597,1737564658771,-582.87467083,0.00020452,2]
[350010598,1737564658780,-150.0,0.00020464,2]
[350010599,1737564658790,-207.20160687,0.00020508,2]
[350010600,1737564658799,-500.0,0.00020508,2]
[350010601,1737564658808,-218.11091749,0.00020508,2]
[350010602,1737564658817,-161.04232622,0.00020508,2]
[350010603,1737564658828,-500.0,0.00020508,2]
[350010604,1737564658837,-500.61254514,0.00020508,2]
[350010605,1737564658846,-500.0,0.00020508,2]
[350010606,1737564658855,-379.01686349,0.00020508,2]
[350010607,1737564658864,-500.0,0.00020508,2]
[350010608,1737564658873,-500.0,0.00020508,2]
[350010609,1737564658882,-500.0,0.00020508,2]
[350010610,1737564658895,-500.0,0.00020508,2]
[350010611,1737564658904,-500.0,0.00020508,2]
[350010612,1737564658913,-211.83412556,0.00020508,2]
[350010613,1737564658922,-501.22100309,0.00020508,2]
[350010614,1737564658931,-501.29863588,0.00020508,2]
[350010615,1737564658979,-500.0,0.00020508,2]
[350010616,1737564658989,-157.86482203,0.00020508,2]
[350010617,1737564658998,-504.56395243,0.00020508,2]
[350010618,1737564659007,-501.0505928,0.00020508,2]
[350010619,1737564659016,-506.46286156,0.00020508,2]
[350010620,1737564659026,-513.85971923,0.00020508,2]
[350010621,1737564659035,-500.0,0.00020508,2]
[350010622,1737564659044,-500.0,0.00020508,2]
[350010623,1737564659053,-500.0,0.00020508,2]
[350010624,1737564659062,-531.89074431,0.00020508,2]
[350010625,1737564659072,-500.0,0.00020508,2]
[350010626,1737564659081,-1065.01,0.00020508,2]
[350010627,1737564659092,-500.0,0.00020508,2]
[350010628,1737564659102,-987.33,0.00020508,2]
[350010629,1737564659112,-500.0,0.00020508,2]
[350010630,1737564659121,-842.24,0.00020508,2]
[350010631,1737564659130,-500.0,0.00020508,2]
[350010632,1737564659140,-500.0,0.00020508,2]
[350010633,1737564659149,-500.0,0.00020508,2]
[350010634,1737564659158,-500.0,0.00020508,2]
[350010635,1737564659168,-759.98,0.00020508,2]
[350010636,1737564659177,-500.0,0.00020508,2]
[350010637,1737564659186,-500.0,0.00020508,2]
[350010638,1737564659196,-500.0,0.00020508,2]
[350010639,1737564659205,-618.44,0.00020508,2]
[350010640,1737564659214,-500.0,0.00020508,2]
[350010641,1737564659224,-150.0,0.00020512,2]
[350010642,1737564659233,-500.0,0.00020547,2]
[350010643,1737564659244,-500.0,0.00020547,2]
[350010644,1737564659253,-500.0,0.00020547,2]
[350010645,1737564659262,-500.0,0.00020547,2]
[350010646,1737564659271,-500.0,0.00020547,2]
[350010647,1737564659280,-178.79916697,0.00020547,2]
[350010648,1737564659289,-500.0,0.00020547,2]
[350010649,1737564659299,-410.21606942,0.00020547,2]
[350010650,1737564659309,-700.16,0.00020547,2]
[350010651,1737564659317,-653.57,0.00020547,2]
[350010652,1737564659329,-500.0,0.00020547,2]
[350010653,1737564659339,-500.0,0.00020547,2]
[350010654,1737564659348,-501.2,0.00020547,2]
[350010655,1737564659357,-578.29,0.00020547,2]
[350010656,1737564659367,-815.2,0.00020547,2]
[350010657,1737564659376,-500.0,0.00020547,2]
[350010658,1737564659386,-500.0,0.00020547,2]
[350010659,1737564659395,-500.0,0.00020547,2]
[350010660,1737564659404,-500.0,0.00020547,2]
[350010661,1737564659413,-500.0,0.00020547,2]
[350010662,1737564659422,-500.0,0.00020547,2]
[350010663,1737564659432,-500.0,0.00020547,2]
[350010664,1737564659440,-597.93,0.00020547,2]
[350010665,1737564659450,-500.0,0.00020547,2]
[350010666,1737564659460,-568.16,0.00020547,2]
[350010667,1737564659469,-500.0,0.00020547,2]
[350010668,1737564659478,-500.0,0.00020547,2]
[350010669,1737564659487,-500.0,0.00020547,2]
[350010670,1737564659496,-693.59,0.00020547,2]
[350010671,1737564659505,-774.01,0.00020547,2]
[350010672,1737564659514,-500.0,0.00020547,2]
[350010673,1737564659523,-500.0,0.00020547,2]
[350010674,1737564659533,-678.729105,0.00020547,2]
[350010675,1737564659542,-643.99,0.00020547,2]
[350010676,1737564659551,-500.0,0.00020547,2]
[350010677,1737564659561,-500.0,0.00020547,2]
[350010678,1737564659570,-500.0,0.00020547,2]
[350010679,1737564659579,-921.053606,0.00020547,2]
[350010680,1737564659589,-500.0,0.00020547,2]
[350010681,1737564659598,-500.0,0.00020547,2]
[350010682,1737564659607,-530.18,0.00020547,2]
[350010683,1737564659617,-500.0,0.00020547,2]
[350010684,1737564659626,-500.0,0.00020547,2]
[350010685,1737564659635,-500.0,0.00020547,2]
[350010686,1737564659645,-500.0,0.00020547,2]
[350010687,1737564659654,-500.0,0.00020547,2]
[350010688,1737564659663,-500.0,0.00020547,2]
[350010689,1737564659672,-500.0,0.00020547,2]
[350010690,1737564659681,-500.0,0.00020547,2]
[350010691,1737564659690,-500.0,0.00020547,2]
[350010692,1737564659699,-855.78,0.00020547,2]
[350010693,1737564659709,-500.0,0.00020547,2]
[350010694,1737564659718,-709.74,0.00020547,2]
[350010695,1737564659727,-378.11445293,0.00020547,2]
[350010696,1737564659736,-826.55,0.00020547,2]
[350010697,1737564659745,-500.0,0.00020547,2]
[350010698,1737564659755,-500.0,0.00020547,2]
[350010699,1737564659764,-500.0,0.00020547,2]
[350010700,1737564659773,-662.96,0.00020547,2]
[350010701,1737564659782,-679.12,0.00020547,2]
[350010702,1737564659791,-500.0,0.00020547,2]
[350010703,1737564659800,-500.0,0.00020547,2]
[350010704,1737564659809,-512.16,0.00020547,2]
[350010705,1737564659819,-500.0,0.00020547,2]
[350010706,1737564659829,-1005.12,0.00020547,2]
[350010707,1737564659839,-500.0,0.00020547,2]
[350010708,1737564659848,-500.0,0.00020547,2]
[350010709,1737564659857,-698.09,0.00020547,2]
[350010710,1737564659866,-628.59,0.00020547,2]
[350010711,1737564659875,-539.62,0.00020547,2]
[350010712,1737564659884,-500.0,0.00020547,2]
[350010713,1737564659896,-500.0,0.00020547,2]
[350010714,1737564659906,-740.64,0.00020547,2]
[350010715,1737564659915,-631.21188016,0.00020547,2]
[350010716,1737564659924,-960.26,0.00020547,2]
[350010717,1737564659933,-932.4,0.00020547,2]
[350010718,1737564659942,-776.07,0.00020547,2]
[350010719,1737564659952,-500.0,0.00020547,2]
[350010720,1737564659961,-500.0,0.00020547,2]
[350010721,1737564659970,-500.0,0.00020547,2]
[350010722,1737564659979,-880.8,0.00020547,2]
[350010723,1737564659989,-500.0,0.00020547,2]
[350010724,1737564659998,-500.0,0.00020547,2]
[350010725,1737564660008,-827.35,0.00020547,2]
[350010726,1737564660017,-984.49,0.00020547,2]
[350010727,1737564660026,-675.84,0.00020547,2]
[350010728,1737564660036,-624.4,0.00020547,2]
[350010729,1737564660046,-533.95,0.00020547,2]
[350010730,1737564660055,-798.72,0.00020547,2]
[350010731,1737564660065,-851.17,0.00020547,2]
[350010732,1737564660076,-754.56,0.00020547,2]
[350010733,1737564660086,-500.0,0.00020547,2]
[350010734,1737564660097,-500.0,0.00020547,2]
[350010735,1737564660106,-940.6,0.00020547,2]
[350010736,1737564660116,-500.0,0.00020547,2]
[350010737,1737564660126,-937.01,0.00020547,2]
[350010738,1737564660136,-1249.64,0.00020547,2]
[350010739,1737564660146,-500.0,0.00020547,2]
[350010740,1737564660162,-500.0,0.00020547,2]
[350010741,1737564660175,-500.0,0.00020547,2]
[350010742,1737564660184,-500.0,0.00020547,2]
[350010743,1737564660194,-500.0,0.00020547,2]
[350010744,1737564660204,-557.94,0.00020547,2]
[350010745,1737564660215,-1662.37,0.00020547,2]
[350010746,1737564660225,-799.87,0.00020547,2]
[350010747,1737564660235,-659.97,0.00020547,2]
[350010748,1737564660244,-1189.42,0.00020547,2]
[350010749,1737564660255,-1115.66,0.00020547,2]
[350010750,1737564660265,-758.88,0.00020547,2]
[350010751,1737564660276,-500.0,0.00020547,2]
[350010752,1737564660286,-897.56,0.00020547,2]
[350010753,1737564660296,-600.73,0.00020547,2]
[350010754,1737564660307,-444.83458284,0.00020547,2]
[350010755,1737564660317,-500.0,0.00020547,2]
[350010756,1737564660331,-1689.73,0.00020547,2]
[350010757,1737564660341,-500.0,0.00020547,2]
[350010758,1737564660351,-1289.84,0.00020547,2]
[350010759,1737564660361,-948.07,0.00020547,2]
[350010760,1737564660371,-500.0,0.00020547,2]
[350010761,1737564660382,-1292.99,0.00020547,2]
[350010762,1737564660392,-987.12,0.00020547,2]
[350010763,1737564660402,-500.0,0.00020547,2]
[350010764,1737564660412,-1179.31,0.00020547,2]
[350010765,1737564660422,-500.0,0.00020547,2]
[350010766,1737564660433,-1540.0,0.00020547,2]
[350010767,1737564660443,-500.0,0.00020547,2]
[350010768,1737564660454,-576.36,0.00020547,2]
[350010769,1737564660464,-1949.27,0.00020547,2]
[350010770,1737564660473,-1084.18,0.00020547,2]
[350010771,1737564660482,-2520.38,0.00020547,2]
[350010772,1737564660493,-553.52,0.00020547,2]
[350010773,1737564660503,-5054.1,0.00020547,2]
[350010774,1737564660513,-668.03,0.00020547,2]
[350010775,1737564660524,-933.97,0.00020547,2]
[350010776,1737564660534,-1396.54,0.00020547,2]
[350010777,1737564660544,-2807.04,0.00020547,2]
[350010778,1737564660554,-640.64,0.00020547,2]
[350010779,1737564660564,-861.9,0.00020547,2]
[350010780,1737564660577,-742.82,0.00020547,2]
[350010781,1737564660588,-500.0,0.00020547,2]
[350010782,1737564660598,-2622.27,0.00020547,2]
[350010783,1737564660609,-475.34801207,0.00020547,2]
[350010784,1737564660619,-1147.71,0.00020547,2]
[350010785,1737564660629,-442.42,0.00020547,2]
[350010786,1737564660640,-1397.58,0.00020547,2]
[350010787,1737564660650,-644.84,0.00020547,2]
[350010788,1737564660660,-500.0,0.00020547,2]
[350010789,1737564660671,-876.86,0.00020547,2]
[350010790,1737564660681,-1969.95,0.00020547,2]
[350010791,1737564660691,-1623.55,0.00020547,2]
[350010792,1737564660700,-1125.49,0.00020547,2]
[350010793,1737564660710,-988.97,0.00020547,2]
[350010794,1737564660721,-500.0,0.00020547,2]
[350010795,1737564660731,-1383.41,0.00020547,2]
[350010796,1737564660741,-3375.42,0.00020547,2]
[350010797,1737564660751,-933.59,0.00020547,2]
[350010798,1737564660761,-500.0,0.00020547,2]
[350010799,1737564660771,-877.46,0.00020547,2]
[350010800,1737564660780,-674.84,0.00020547,2]
[350010801,1737564660790,-788.35,0.00020547,2]
[350010802,1737564660800,-2196.11,0.00020547,2]
[350010803,1737564660810,-1102.3,0.00020547,2]
[350010804,1737564660819,-802.14,0.00020547,2]
[350010805,1737564660831,-500.0,0.00020547,2]
[350010806,1737564660842,-1948.77,0.00020547,2]
[350010807,1737564660852,-1505.78,0.00020547,2]
[350010808,1737564660862,-2637.93,0.00020547,2]
[350010809,1737564660872,-500.0,0.00020547,2]
[350010810,1737564660882,-994.03,0.00020547,2]
[350010811,1737564660894,-637.51,0.00020547,2]
[350010812,1737564660904,-866.11,0.00020547,2]
[350010813,1737564660914,-524.7,0.00020547,2]
[350010814,1737564660925,-500.0,0.00020547,2]
[350010815,1737564660935,-895.62,0.00020547,2]
[350010816,1737564660946,-709.66,0.00020547,2]
[350010817,1737564660956,-500.0,0.00020547,2]
[350010818,1737564660966,-1296.18,0.00020547,2]
[350010819,1737564660976,-1221.77,0.00020547,2]
[350010820,1737564660986,-500.0,0.00020547,2]
[350010821,1737564660996,-1308.26,0.00020547,2]
[350010822,1737564661007,-1266.64,0.00020547,2]
[350010823,1737564661017,-500.0,0.00020547,2]
[350010824,1737564661028,-1024.02,0.00020547,2]
[350010825,1737564661038,-933.28,0.00020547,2]
[350010826,1737564661048,-624.97635356,0.00020547,2]
[350010827,1737564661059,-2952.64,0.00020547,2]
[350010828,1737564661069,-929.73,0.00020547,2]
[350010829,1737564661082,-1159.37,0.00020547,2]
[350010830,1737564661092,-817.08,0.00020547,2]
[350010831,1737564661102,-522.56,0.00020547,2]
[350010832,1737564661111,-1594.75,0.00020547,2]
[350010833,1737564661121,-500.0,0.00020547,2]
[350010834,1737564661131,-500.0,0.00020547,2]
[350010835,1737564661140,-500.0,0.00020547,2]
[350010836,1737564661150,-1319.68,0.00020547,2]
[350010837,1737564661160,-500.0,0.00020547,2]
[350010838,1737564661170,-943.47,0.00020547,2]
[350010839,1737564661180,-556.38,0.00020547,2]
[350010840,1737564661189,-979.95,0.00020547,2]
[350010841,1737564661200,-2180.0,0.00020547,2]
[350010842,1737564661210,-500.0,0.00020547,2]
[350010843,1737564661219,-500.0,0.00020547,2]
[350010844,1737564661229,-1000.0,0.00020547,2]
[350010845,1737564661239,-1054.44,0.00020547,2]
[350010846,1737564661248,-500.0,0.00020547,2]
[350010847,1737564661258,-599.54,0.00020547,2]
[350010848,1737564661268,-506.05,0.00020547,2]
[350010849,1737564661277,-500.0,0.00020547,2]
[350010850,1737564661288,-616.56,0.00020547,2]
[350010851,1737564661298,-703.23,0.00020547,2]
[350010852,1737564661308,-1469.11,0.00020547,2]
[350010853,1737564661318,-500.0,0.00020547,2]
[350010854,1737564661329,-500.0,0.00020547,2]
[350010855,1737564661339,-500.0,0.00020547,2]
[350010856,1737564661349,-500.0,0.00020547,2]
[350010857,1737564661359,-500.0,0.00020547,2]
[350010858,1737564661370,-500.0,0.00020547,2]
[350010859,1737564661380,-1729.24,0.00020547,2]
[350010860,1737564661390,-1622.79,0.00020547,2]
[350010861,1737564661399,-563.14,0.00020547,2]
[350010862,1737564661409,-500.0,0.00020547,2]
[350010863,1737564661420,-2613.81,0.00020547,2]
[350010864,1737564661430,-904.26,0.00020547,2]
[350010865,1737564661440,-548.46,0.00020547,2]
[350010866,1737564661450,-931.41,0.00020547,2]
[350010867,1737564661460,-500.0,0.00020547,2]
[350010868,1737564661471,-2218.6,0.00020547,2]
[350010869,1737564661480,-582.87467083,0.00020555,2]
[350010870,1737564661490,-150.0,0.00020561,2]
[350010871,1737564661499,-500.0,0.00020573,2]
[350010872,1737564661509,-150.0,0.00020579,2]
[350010873,1737564661519,-150.0,0.00020601,2]
[350010874,1737564661529,-2000.0,0.00020614,2]
[350010875,1737564661539,-200.0,0.00020614,2]
[350010876,1737564661548,-1864.3822688,0.00020614,2]
[350010877,1737564661558,-200.0,0.00020614,2]
[350010878,1737564661569,-924.0006285,0.00020646,2]
[350010879,1737564661580,-677.58006963,0.00020646,2]
[350010880,1737564661590,-222.2,0.00020646,2]
[350010881,1737564661600,-582.87467083,0.00020659,2]
[350010882,1737564661610,-871.83,0.00020677,2]
[350010883,1737564661620,-150.0,0.0002069,2]
[350010884,1737564661631,-184.25,0.00020697,2]
[350010885,1737564661641,-743.40120403,0.00020699,2]
[350010886,1737564661651,-20148.28889712,0.000207,2]
[350010887,1737564661660,-45551.63,0.0002073,2]
[350010888,1737564661670,-500.0,0.0002074,2]
[350010889,1737564661680,-500.0,0.0002074,2]
[350010890,1737564661689,-150.0,0.00020749,2]
[350010891,1737564661699,-150.0,0.00020754,2]
[350010892,1737564661709,-582.87467083,0.00020762,2]
[350010893,1737564661718,-252.44652349,0.00020782,2]
[350010894,1737564661729,-306.16202311,0.00020782,2]
[350010895,1737564661739,-500.0,0.00020782,2]
[350010896,1737564661748,-502.02025939,0.00020782,2]
[350010897,1737564661758,-500.0,0.00020782,2]
[350010898,1737564661768,-500.0,0.00020782,2]
[350010899,1737564661778,-500.0,0.00020782,2]
[350010900,1737564661787,-500.0,0.00020782,2]
[350010901,1737564661797,-1065.01,0.00020782,2]
[350010902,1737564661806,-500.0,0.00020782,2]
[350010903,1737564661815,-987.33,0.00020782,2]
[350010904,1737564661826,-500.0,0.00020782,2]
[350010905,1737564661836,-842.24,0.00020782,2]
[350010906,1737564661845,-500.0,0.00020782,2]
[350010907,1737564661855,-500.0,0.00020782,2]
[350010908,1737564661864,-500.0,0.00020782,2]
[350010909,1737564661874,-500.0,0.00020782,2]
[350010910,1737564661884,-759.98,0.00020782,2]
[350010911,1737564661898,-500.0,0.00020782,2]
[350010912,1737564661908,-500.0,0.00020782,2]
[350010913,1737564661918,-500.0,0.00020782,2]
[350010914,1737564661928,-618.44,0.00020782,2]
[350010915,1737564661938,-500.0,0.00020782,2]
[350010916,1737564661949,-1192.98471376,0.00020783,2]
[350010917,1737564661959,-237.96701225,0.00020787,2]
[350010918,1737564661968,-2366.84782946,0.00020787,2]
[350010919,1737564661978,-467.66187539,0.00020788,2]
[350010920,1737564661988,-200.0,0.00020788,2]
[350010921,1737564661998,-3877.92162666,0.0002079,2]
[350010922,1737564662007,-522.01085817,0.0002079,2]
[350010923,1737564662017,-11508.54344865,0.0002079,2]
[350010924,1737564662027,-200.0,0.00020791,2]
[350010925,1737564662037,-13141.46127536,0.00020792,2]
[350010926,1737564662047,-1345.22072519,0.00020792,2]
[350010927,1737564662057,-1075.2049286,0.00020792,2]
[350010928,1737564662067,-200.0,0.00020793,2]
[350010929,1737564662077,-538.6951597,0.00020793,2]
[350010930,1737564662087,-1882.65674679,0.00020793,2]
[350010931,1737564662097,-20255.79710013,0.00020794,2]
[350010932,1737564662107,-290.766975,0.00020794,2]
[350010933,1737564662118,-15588.13316899,0.00020797,2]
[350010934,1737564662128,-526.960744,0.00020798,2]
[350010935,1737564662138,-150.0,0.00020799,2]
[350010936,1737564662148,-13141.46127536,0.00020799,2]
[350010937,1737564662158,-1000.0,0.000208,2]
[350010938,1737564662167,-1044.0,0.000208,3]
[350010939,1737564662177,-46490.78952331,0.000208,2]
[350010940,1737564662187,-200.0,0.00020802,2]
[350010941,1737564662196,-1345.22072519,0.00020802,2]
[350010942,1737564662206,-274.9569115,0.00020802,2]
[350010943,1737564662216,-1345.22072519,0.00020802,2]
[350010944,1737564662226,-991.47422397,0.00020804,2]
[350010945,1737564662236,-11508.54344865,0.00020804,2]
[350010946,1737564662246,-1192.98471376,0.00020806,2]